[Event "*** Titled Tuesday Blitz"]
[Site "Chess.com"]
[Date "2020.10.20"]
[Round "9"]
[White "Volodar_Murzin"]
[Black "witcher8"]
[Result "1-0"]
[WhiteElo "2613"]
[BlackElo "2435"]
[TimeControl "180+1"]
[EndTime "11:46:00 PDT"]
[Termination "Volodar_Murzin won on time"]

1. e4 {[%clk 0:03:00.9]} 1... c6 {[%clk 0:03:00]} 2. d4 {[%clk 0:03:00.2]} 2...
d5 {[%clk 0:03:00.9]} 3. f3 {[%clk 0:03:00.7]} 3... e6 {[%clk 0:03:00]} 4. Nc3
{[%clk 0:03:00]} 4... Bb4 {[%clk 0:02:58.9]} 5. a3 {[%clk 0:02:59.7]} 5... Ba5
{[%clk 0:02:40.5]} 6. b4 {[%clk 0:02:58.1]} 6... Bc7 {[%clk 0:02:25.6]} 7. Be3
{[%clk 0:02:55.5]} 7... Nf6 {[%clk 0:02:25.6]} 8. e5 {[%clk 0:02:45.1]} 8...
Nfd7 {[%clk 0:02:25.4]} 9. f4 {[%clk 0:02:45.7]} 9... b6 {[%clk 0:02:25.5]} 10.
Bd3 {[%clk 0:02:44.9]} 10... c5 {[%clk 0:02:25.6]} 11. bxc5 {[%clk 0:02:41.5]}
11... bxc5 {[%clk 0:02:25.8]} 12. Nf3 {[%clk 0:02:41.4]} 12... Ba6 {[%clk
0:02:18.5]} 13. f5 {[%clk 0:02:38.9]} 13... Bxd3 {[%clk 0:02:14.9]} 14. Qxd3
{[%clk 0:02:37.3]} 14... cxd4 {[%clk 0:02:08.9]} 15. fxe6 {[%clk 0:02:22.4]}
15... fxe6 {[%clk 0:02:04.1]} 16. Nxd4 {[%clk 0:02:18.4]} 16... Bxe5 {[%clk
0:01:22.4]} 17. Nxe6 {[%clk 0:02:12.5]} 17... Qf6 {[%clk 0:01:10.9]} 18. Nd4
{[%clk 0:02:01.9]} 18... Nc5 {[%clk 0:00:42.9]} 19. Qb5+ {[%clk 0:01:58.1]}
19... Nbd7 {[%clk 0:00:43.3]} 20. O-O-O {[%clk 0:01:54.3]} 20... Rb8 {[%clk
0:00:38.6]} 21. Nxd5 {[%clk 0:01:45.3]} 21... Qd6 {[%clk 0:00:15.2]} 22. Qc6
{[%clk 0:01:30.4]} 22... Nd3+ {[%clk 0:00:03.4]} 23. Rxd3 {[%clk 0:01:25.8]} 1-0

[Event "*** Titled Tuesday Blitz"]
[Site "Chess.com"]
[Date "2020.10.20"]
[Round "9"]
[White "MaxLeto"]
[Black "Sn00pPawn"]
[Result "0-1"]
[WhiteElo "2308"]
[BlackElo "2029"]
[TimeControl "180+1"]
[EndTime "11:46:02 PDT"]
[Termination "Sn00pPawn won by resignation"]

1. e4 {[%clk 0:03:00.9]} 1... c5 {[%clk 0:02:59.8]} 2. Nf3 {[%clk 0:02:59.7]}
2... d6 {[%clk 0:03:00.2]} 3. d4 {[%clk 0:02:59.8]} 3... cxd4 {[%clk 0:03:01.1]}
4. Nxd4 {[%clk 0:03:00.7]} 4... Nf6 {[%clk 0:03:00.9]} 5. Nc3 {[%clk 0:03:00.6]}
5... a6 {[%clk 0:03:01.5]} 6. h3 {[%clk 0:02:59.1]} 6... e5 {[%clk 0:02:59.8]}
7. Nde2 {[%clk 0:02:55.8]} 7... Be7 {[%clk 0:03:00.7]} 8. g4 {[%clk 0:02:55.9]}
8... O-O {[%clk 0:02:59.2]} 9. g5 {[%clk 0:02:49.2]} 9... Ne8 {[%clk 0:02:58.1]}
10. h4 {[%clk 0:02:43.3]} 10... Be6 {[%clk 0:02:58.3]} 11. Nd5 {[%clk
0:02:39.2]} 11... Nc6 {[%clk 0:02:57.7]} 12. Be3 {[%clk 0:02:33.4]} 12... b5
{[%clk 0:02:46.6]} 13. Qd2 {[%clk 0:02:08.4]} 13... Rb8 {[%clk 0:02:46.1]} 14.
O-O-O {[%clk 0:02:04.4]} 14... Bxd5 {[%clk 0:02:36.7]} 15. Qxd5 {[%clk 0:02:04]}
15... Nb4 {[%clk 0:02:34]} 16. Qb3 {[%clk 0:02:02.6]} 16... a5 {[%clk
0:02:33.8]} 17. Nc3 {[%clk 0:01:51.4]} 17... d5 {[%clk 0:02:22.3]} 18. Nxd5
{[%clk 0:01:07.7]} 18... a4 {[%clk 0:02:19.3]} 19. Nxe7+ {[%clk 0:00:22.5]}
19... Qxe7 {[%clk 0:02:11.3]} 20. Qa3 {[%clk 0:00:23]} 20... Rc8 {[%clk
0:01:39.8]} 21. c3 {[%clk 0:00:20.1]} 21... Rxc3+ {[%clk 0:01:36.5]} 22. bxc3
{[%clk 0:00:09.3]} 22... Nd3+ {[%clk 0:01:36.3]} 23. Bxd3 {[%clk 0:00:09.9]}
23... Qxa3+ {[%clk 0:01:36.2]} 24. Kd2 {[%clk 0:00:10]} 24... Qxa2+ {[%clk
0:01:34.2]} 25. Bc2 {[%clk 0:00:08.1]} 25... Nd6 {[%clk 0:01:32.2]} 26. Ke1
{[%clk 0:00:02.5]} 0-1

[Event "*** Titled Tuesday Blitz"]
[Site "Chess.com"]
[Date "2020.10.20"]
[Round "9"]
[White "korbul"]
[Black "chessmadara"]
[Result "1/2-1/2"]
[WhiteElo "2518"]
[BlackElo "2210"]
[TimeControl "180+1"]
[EndTime "11:46:16 PDT"]
[Termination "Game drawn by agreement"]

1. e4 {[%clk 0:03:00.9]} 1... c5 {[%clk 0:02:59.4]} 2. Nf3 {[%clk 0:03:00]} 2...
Nc6 {[%clk 0:02:59.2]} 3. Bb5 {[%clk 0:02:57.8]} 3... g6 {[%clk 0:02:58.2]} 4.
O-O {[%clk 0:02:55.7]} 4... Bg7 {[%clk 0:02:57.7]} 5. Re1 {[%clk 0:02:55.8]}
5... e5 {[%clk 0:02:57.4]} 6. c3 {[%clk 0:02:55.2]} 6... Nge7 {[%clk 0:02:54]}
7. a3 {[%clk 0:02:52.2]} 7... O-O {[%clk 0:02:52.1]} 8. b4 {[%clk 0:02:51.9]}
8... cxb4 {[%clk 0:02:50.5]} 9. axb4 {[%clk 0:02:51.6]} 9... d5 {[%clk
0:02:49.5]} 10. d3 {[%clk 0:02:43.5]} 10... a6 {[%clk 0:02:46.2]} 11. h3 {[%clk
0:02:42.6]} 11... Be6 {[%clk 0:02:43.5]} 12. Ba4 {[%clk 0:02:41.9]} 12... h6
{[%clk 0:02:30.1]} 13. Bb2 {[%clk 0:02:40.7]} 13... Rc8 {[%clk 0:02:27.2]} 14.
Nbd2 {[%clk 0:02:39.8]} 14... Kh7 {[%clk 0:01:49.1]} 15. Bb3 {[%clk 0:02:38.2]}
15... Ng8 {[%clk 0:01:45.9]} 16. exd5 {[%clk 0:02:24.6]} 16... Bxd5 {[%clk
0:01:45.3]} 17. Nc4 {[%clk 0:02:15.4]} 17... e4 {[%clk 0:01:14.9]} 18. dxe4
{[%clk 0:02:09.5]} 18... Bxc4 {[%clk 0:01:15]} 19. Bxc4 {[%clk 0:02:08.2]} 19...
Qxd1 {[%clk 0:01:14.7]} 20. Raxd1 {[%clk 0:02:05]} 20... Nxb4 {[%clk 0:01:14.6]}
21. cxb4 {[%clk 0:01:48.3]} 21... Bxb2 {[%clk 0:01:13.3]} 22. Bd5 {[%clk
0:01:44.6]} 22... Bc3 {[%clk 0:01:11.7]} 23. Re2 {[%clk 0:01:43.3]} 23... Bxb4
{[%clk 0:01:10.2]} 24. Bxb7 {[%clk 0:01:43.1]} 24... Rc7 {[%clk 0:01:02.4]} 25.
Bxa6 {[%clk 0:01:42.9]} 25... Nf6 {[%clk 0:00:58.8]} 26. g3 {[%clk 0:01:41.5]}
26... Re8 {[%clk 0:00:57.2]} 27. e5 {[%clk 0:01:41.4]} 27... Nd7 {[%clk
0:00:54.8]} 28. Bb5 {[%clk 0:01:40.5]} 28... Re7 {[%clk 0:00:53.4]} 29. Bxd7
{[%clk 0:01:29.3]} 29... Rcxd7 {[%clk 0:00:53.5]} 30. Rxd7 {[%clk 0:01:28.7]}
30... Rxd7 {[%clk 0:00:54.4]} 31. e6 {[%clk 0:01:29.1]} 31... fxe6 {[%clk
0:00:52.3]} 32. Rxe6 {[%clk 0:01:29.1]} 32... Bc3 {[%clk 0:00:48.2]} 33. Kg2
{[%clk 0:01:27.4]} 33... Kg7 {[%clk 0:00:47.3]} 34. h4 {[%clk 0:01:26.9]} 34...
Bf6 {[%clk 0:00:45.2]} 35. Ra6 {[%clk 0:01:22.9]} 35... Rb7 {[%clk 0:00:44.9]}
36. g4 {[%clk 0:01:20.6]} 36... Rb4 {[%clk 0:00:41.6]} 37. g5 {[%clk 0:01:17.7]}
37... hxg5 {[%clk 0:00:41.8]} 38. hxg5 {[%clk 0:01:17.6]} 38... Bxg5 {[%clk
0:00:42]} 1/2-1/2

[Event "*** Titled Tuesday Blitz"]
[Site "Chess.com"]
[Date "2020.10.20"]
[Round "9"]
[White "mishanick"]
[Black "Sashadav97"]
[Result "1-0"]
[WhiteElo "3000"]
[BlackElo "2676"]
[TimeControl "180+1"]
[EndTime "11:46:18 PDT"]
[Termination "mishanick won on time"]

1. d4 {[%clk 0:03:00.9]} 1... d5 {[%clk 0:02:57.1]} 2. c4 {[%clk 0:03:01.2]}
2... e6 {[%clk 0:02:57.1]} 3. Nf3 {[%clk 0:03:00.9]} 3... Nf6 {[%clk 0:02:57.1]}
4. Nc3 {[%clk 0:03:01.4]} 4... a6 {[%clk 0:02:56.6]} 5. cxd5 {[%clk 0:03:01.2]}
5... exd5 {[%clk 0:02:57.5]} 6. Qb3 {[%clk 0:03:01.6]} 6... c6 {[%clk
0:02:14.1]} 7. Bg5 {[%clk 0:02:54.9]} 7... Be7 {[%clk 0:02:08.1]} 8. e3 {[%clk
0:02:55.5]} 8... O-O {[%clk 0:02:08.6]} 9. Bd3 {[%clk 0:02:56.1]} 9... Qc7
{[%clk 0:01:57.7]} 10. O-O {[%clk 0:02:52]} 10... Be6 {[%clk 0:01:57.1]} 11. Qc2
{[%clk 0:02:51.6]} 11... h6 {[%clk 0:01:51.7]} 12. Bf4 {[%clk 0:02:49.8]} 12...
Bd6 {[%clk 0:01:51.3]} 13. Bxd6 {[%clk 0:02:49.1]} 13... Qxd6 {[%clk 0:01:52.2]}
14. Ne5 {[%clk 0:02:49.6]} 14... Nbd7 {[%clk 0:01:52.4]} 15. f4 {[%clk
0:02:50.1]} 15... Nb6 {[%clk 0:01:48.7]} 16. Rac1 {[%clk 0:02:42.7]} 16... Rfe8
{[%clk 0:01:45.3]} 17. Ne2 {[%clk 0:02:40.9]} 17... Nc4 {[%clk 0:01:27.7]} 18.
Rf3 {[%clk 0:02:28.6]} 18... Qb4 {[%clk 0:00:48]} 19. b3 {[%clk 0:02:21.1]}
19... Na3 {[%clk 0:00:46.4]} 20. Qb2 {[%clk 0:02:19.5]} 20... Nb5 {[%clk
0:00:45.9]} 21. Nc3 {[%clk 0:02:07.1]} 21... Nxc3 {[%clk 0:00:43.2]} 22. Rxc3
{[%clk 0:02:08]} 22... Ne4 {[%clk 0:00:37.4]} 23. Bxe4 {[%clk 0:02:07.9]} 23...
dxe4 {[%clk 0:00:38.3]} 24. Rf1 {[%clk 0:02:08.3]} 24... f6 {[%clk 0:00:35.6]}
25. Nc4 {[%clk 0:02:07.5]} 25... Bxc4 {[%clk 0:00:35.7]} 26. Rxc4 {[%clk
0:02:07.6]} 26... Qd6 {[%clk 0:00:36.3]} 27. Rc5 {[%clk 0:02:06.5]} 27... Rad8
{[%clk 0:00:34.8]} 28. Qc3 {[%clk 0:02:06.9]} 28... Re7 {[%clk 0:00:35.1]} 29.
b4 {[%clk 0:02:06.9]} 29... Kh8 {[%clk 0:00:30.4]} 30. a4 {[%clk 0:02:07.4]}
30... Qe6 {[%clk 0:00:30.9]} 31. h3 {[%clk 0:02:08]} 31... Rd5 {[%clk
0:00:28.1]} 32. Rb1 {[%clk 0:02:03.7]} 32... Rc7 {[%clk 0:00:24.8]} 33. b5
{[%clk 0:02:00.3]} 33... Rxc5 {[%clk 0:00:24]} 34. Qxc5 {[%clk 0:02:00.3]} 34...
axb5 {[%clk 0:00:24.4]} 35. axb5 {[%clk 0:02:00.2]} 35... Qd7 {[%clk 0:00:23.1]}
36. Rc1 {[%clk 0:01:58.9]} 36... Rc8 {[%clk 0:00:14.2]} 37. d5 {[%clk
0:01:56.7]} 37... Qd8 {[%clk 0:00:04.7]} 38. dxc6 {[%clk 0:01:56.1]} 38... bxc6
{[%clk 0:00:05.6]} 39. bxc6 {[%clk 0:01:56.7]} 39... Qd2 {[%clk 0:00:06.1]} 40.
c7 {[%clk 0:01:55.5]} 40... Kg8 {[%clk 0:00:02.2]} 41. Kh2 {[%clk 0:01:53.9]}
41... Kh8 {[%clk 0:00:02]} 42. Rc4 {[%clk 0:01:54]} 1-0

[Event "*** Titled Tuesday Blitz"]
[Site "Chess.com"]
[Date "2020.10.20"]
[Round "9"]
[White "enriquebutti"]
[Black "rugbyclub"]
[Result "0-1"]
[WhiteElo "2003"]
[BlackElo "2179"]
[TimeControl "180+1"]
[EndTime "11:46:20 PDT"]
[Termination "rugbyclub won by resignation"]

1. d4 {[%clk 0:02:56.7]} 1... d5 {[%clk 0:02:07.3]} 2. c4 {[%clk 0:02:51.6]}
2... e6 {[%clk 0:02:07.1]} 3. Nf3 {[%clk 0:02:50.7]} 3... a6 {[%clk 0:02:06.2]}
4. c5 {[%clk 0:02:45.8]} 4... b6 {[%clk 0:02:03.9]} 5. cxb6 {[%clk 0:02:44.8]}
5... cxb6 {[%clk 0:01:59.2]} 6. Nc3 {[%clk 0:02:44.2]} 6... Nf6 {[%clk
0:01:59.1]} 7. Bg5 {[%clk 0:02:42.3]} 7... Be7 {[%clk 0:01:58.4]} 8. e3 {[%clk
0:02:41.7]} 8... O-O {[%clk 0:01:59]} 9. Bd3 {[%clk 0:02:40.8]} 9... Nbd7 {[%clk
0:01:59.1]} 10. O-O {[%clk 0:02:37.4]} 10... b5 {[%clk 0:01:59.4]} 11. Ne5
{[%clk 0:02:35.8]} 11... Bb7 {[%clk 0:01:55.7]} 12. f4 {[%clk 0:02:32.5]} 12...
h6 {[%clk 0:01:55.7]} 13. Bxf6 {[%clk 0:02:21.2]} 13... Nxf6 {[%clk 0:01:54]}
14. Qf3 {[%clk 0:02:20.2]} 14... Rc8 {[%clk 0:01:53]} 15. g4 {[%clk 0:02:18.5]}
15... b4 {[%clk 0:01:50]} 16. Na4 {[%clk 0:02:17.2]} 16... Ne4 {[%clk
0:01:50.2]} 17. Rfc1 {[%clk 0:02:14.4]} 17... Qa5 {[%clk 0:01:42.8]} 18. b3
{[%clk 0:02:12.2]} 18... Rfd8 {[%clk 0:01:30.7]} 19. Bxe4 {[%clk 0:02:09.5]}
19... dxe4 {[%clk 0:01:30.2]} 20. Qe2 {[%clk 0:02:08.5]} 20... f6 {[%clk
0:01:28.8]} 21. Nc4 {[%clk 0:02:07.5]} 21... Qb5 {[%clk 0:01:28.4]} 22. Qg2
{[%clk 0:02:04.3]} 22... Bd5 {[%clk 0:01:25.9]} 23. Nab2 {[%clk 0:02:00.4]}
23... Rc6 {[%clk 0:01:22.1]} 24. Rc2 {[%clk 0:01:58.2]} 24... Rdc8 {[%clk
0:01:21.8]} 25. Rac1 {[%clk 0:01:56.8]} 25... a5 {[%clk 0:01:19.1]} 26. h4
{[%clk 0:01:47.1]} 26... Qa6 {[%clk 0:01:05.9]} 27. g5 {[%clk 0:01:48]} 27...
hxg5 {[%clk 0:01:04.4]} 28. hxg5 {[%clk 0:01:47.6]} 28... a4 {[%clk 0:00:50.5]}
29. g6 {[%clk 0:01:44.8]} 29... Kf8 {[%clk 0:00:45.1]} 30. Qh3 {[%clk
0:01:41.5]} 30... Ke8 {[%clk 0:00:45]} 31. Qh8+ {[%clk 0:01:40.1]} 31... Bf8
{[%clk 0:00:45.1]} 32. Nd6+ {[%clk 0:01:37.4]} 32... Kd7 {[%clk 0:00:44.5]} 33.
Nxc8 {[%clk 0:01:36.3]} 33... Qxc8 {[%clk 0:00:44.6]} 34. Rxc6 {[%clk
0:01:32.8]} 34... Bxc6 {[%clk 0:00:45.5]} 35. Nc4 {[%clk 0:01:31.9]} 35... Qa6
{[%clk 0:00:43.4]} 36. Kf2 {[%clk 0:01:22.6]} 36... axb3 {[%clk 0:00:43.3]} 37.
axb3 {[%clk 0:01:21.6]} 37... Qa2+ {[%clk 0:00:43.1]} 38. Ke1 {[%clk 0:01:20.9]}
38... Qxb3 {[%clk 0:00:42.9]} 39. Qxf8 {[%clk 0:01:19.2]} 0-1

[Event "*** Titled Tuesday Blitz"]
[Site "Chess.com"]
[Date "2020.10.20"]
[Round "9"]
[White "Deepweb2020"]
[Black "MIJuanReyesRosa"]
[Result "1-0"]
[WhiteElo "2220"]
[BlackElo "2096"]
[TimeControl "180+1"]
[EndTime "11:46:24 PDT"]
[Termination "Deepweb2020 won on time"]

1. d4 {[%clk 0:02:59.1]} 1... d5 {[%clk 0:02:57.5]} 2. c4 {[%clk 0:02:58.2]}
2... e6 {[%clk 0:02:56]} 3. Nf3 {[%clk 0:02:56.1]} 3... c5 {[%clk 0:02:53.3]} 4.
cxd5 {[%clk 0:02:54.6]} 4... exd5 {[%clk 0:02:52.4]} 5. g3 {[%clk 0:02:53.9]}
5... Nc6 {[%clk 0:02:50.7]} 6. Bg2 {[%clk 0:02:46.3]} 6... c4 {[%clk 0:02:50.5]}
7. O-O {[%clk 0:02:44.7]} 7... Bb4 {[%clk 0:02:50.6]} 8. b3 {[%clk 0:02:40.1]}
8... cxb3 {[%clk 0:02:48.5]} 9. Qxb3 {[%clk 0:02:37.4]} 9... Nge7 {[%clk
0:02:44.7]} 10. Bf4 {[%clk 0:02:34.3]} 10... a5 {[%clk 0:02:42]} 11. Nc3 {[%clk
0:02:33.3]} 11... O-O {[%clk 0:02:36.1]} 12. a3 {[%clk 0:02:30.2]} 12... Bd6
{[%clk 0:02:20.2]} 13. Bxd6 {[%clk 0:02:27]} 13... Qxd6 {[%clk 0:02:20.1]} 14.
Nb5 {[%clk 0:02:25.5]} 14... Qd8 {[%clk 0:01:53.5]} 15. Rfd1 {[%clk 0:02:19.2]}
15... Bf5 {[%clk 0:01:50.3]} 16. Rac1 {[%clk 0:02:11.5]} 16... Rc8 {[%clk
0:01:45.2]} 17. Ne5 {[%clk 0:02:10.5]} 17... Be6 {[%clk 0:01:26.7]} 18. Nd3
{[%clk 0:02:05.5]} 18... b6 {[%clk 0:00:58.1]} 19. e3 {[%clk 0:01:55.6]} 19...
Re8 {[%clk 0:00:57.6]} 20. Nf4 {[%clk 0:01:53.7]} 20... Qd7 {[%clk 0:00:50.2]}
21. Rc3 {[%clk 0:01:50.5]} 21... g5 {[%clk 0:00:38.3]} 22. Nh5 {[%clk
0:01:33.7]} 22... Bg4 {[%clk 0:00:01.9]} 23. Nf6+ {[%clk 0:01:32.2]} 23... Kg7
{[%clk 0:00:01.6]} 24. Nxd7 {[%clk 0:01:30.9]} 24... Bxd1 {[%clk 0:00:02.5]} 25.
Qxd1 {[%clk 0:01:29.6]} 25... Nxd4 {[%clk 0:00:02.9]} 26. Nxd4 {[%clk
0:01:16.5]} 1-0

[Event "*** Titled Tuesday Blitz"]
[Site "Chess.com"]
[Date "2020.10.20"]
[Round "9"]
[White "chessplayer9919"]
[Black "swimmerchess"]
[Result "0-1"]
[WhiteElo "2619"]
[BlackElo "2784"]
[TimeControl "180+1"]
[EndTime "11:46:28 PDT"]
[Termination "swimmerchess won on time"]

1. e4 {[%clk 0:03:00.9]} 1... c5 {[%clk 0:02:59.9]} 2. Nc3 {[%clk 0:02:59]} 2...
a6 {[%clk 0:02:59.8]} 3. g3 {[%clk 0:02:58.8]} 3... b5 {[%clk 0:03:00]} 4. Bg2
{[%clk 0:02:58.9]} 4... Bb7 {[%clk 0:03:00.7]} 5. d3 {[%clk 0:02:59.1]} 5... e6
{[%clk 0:03:00.8]} 6. Nh3 {[%clk 0:02:59]} 6... Nf6 {[%clk 0:03:01.3]} 7. O-O
{[%clk 0:02:57.9]} 7... b4 {[%clk 0:03:01.7]} 8. Ne2 {[%clk 0:02:57.6]} 8... d5
{[%clk 0:03:02]} 9. e5 {[%clk 0:02:37]} 9... Nfd7 {[%clk 0:03:02]} 10. f4 {[%clk
0:02:36.3]} 10... f6 {[%clk 0:02:56.9]} 11. exf6 {[%clk 0:02:29.5]} 11... Qxf6
{[%clk 0:02:56.7]} 12. g4 {[%clk 0:02:14.3]} 12... Bd6 {[%clk 0:02:55.3]} 13. g5
{[%clk 0:02:11.7]} 13... Qe7 {[%clk 0:02:54.6]} 14. f5 {[%clk 0:02:04.6]} 14...
O-O {[%clk 0:02:53.9]} 15. Ng3 {[%clk 0:02:02.5]} 15... Bxg3 {[%clk 0:02:37.7]}
16. fxe6 {[%clk 0:01:09.5]} 16... Rxf1+ {[%clk 0:02:32.1]} 17. Qxf1 {[%clk
0:01:09]} 17... Bxh2+ {[%clk 0:02:31.4]} 18. Kxh2 {[%clk 0:01:09]} 18... Qxe6
{[%clk 0:02:31.6]} 19. Bf4 {[%clk 0:00:59.2]} 19... Nc6 {[%clk 0:02:28.4]} 20.
Re1 {[%clk 0:00:58.3]} 20... Nde5 {[%clk 0:02:01.2]} 21. c3 {[%clk 0:00:18.9]}
21... Re8 {[%clk 0:01:58.9]} 22. Kh1 {[%clk 0:00:11.8]} 22... bxc3 {[%clk
0:01:18.4]} 23. bxc3 {[%clk 0:00:11.5]} 23... Qf7 {[%clk 0:01:19]} 24. d4 {[%clk
0:00:06.1]} 24... cxd4 {[%clk 0:01:19.9]} 25. cxd4 {[%clk 0:00:07]} 25... Ng6
{[%clk 0:01:16.8]} 26. Rxe8+ {[%clk 0:00:06.2]} 26... Qxe8 {[%clk 0:01:17.7]}
27. Bxd5+ {[%clk 0:00:06.5]} 27... Kh8 {[%clk 0:01:18.4]} 28. Bd6 {[%clk
0:00:02.8]} 28... Qd7 {[%clk 0:01:15.2]} 0-1

[Event "*** Titled Tuesday Blitz"]
[Site "Chess.com"]
[Date "2020.10.20"]
[Round "9"]
[White "Buffy7"]
[Black "Ajedrez_con_German"]
[Result "1-0"]
[WhiteElo "2649"]
[BlackElo "2450"]
[TimeControl "180+1"]
[EndTime "11:46:31 PDT"]
[Termination "Buffy7 won by resignation"]

1. c4 {[%clk 0:03:00.9]} 1... b6 {[%clk 0:02:51.1]} 2. e4 {[%clk 0:03:00.1]}
2... Bb7 {[%clk 0:02:51.1]} 3. Nc3 {[%clk 0:03:00.7]} 3... c5 {[%clk 0:02:51.4]}
4. Nf3 {[%clk 0:03:00.3]} 4... e6 {[%clk 0:02:50.3]} 5. d4 {[%clk 0:03:00.1]}
5... cxd4 {[%clk 0:02:49.8]} 6. Nxd4 {[%clk 0:03:01]} 6... d6 {[%clk 0:02:34.2]}
7. Be3 {[%clk 0:02:53.3]} 7... Nf6 {[%clk 0:02:32.3]} 8. Qc2 {[%clk 0:02:52.4]}
8... Be7 {[%clk 0:02:32.1]} 9. O-O-O {[%clk 0:02:51]} 9... O-O {[%clk
0:02:23.6]} 10. Be2 {[%clk 0:02:46.9]} 10... Nc6 {[%clk 0:02:12]} 11. g4 {[%clk
0:02:42]} 11... Nxd4 {[%clk 0:02:09.1]} 12. Bxd4 {[%clk 0:02:42.9]} 12... Qc7
{[%clk 0:02:03]} 13. g5 {[%clk 0:02:40.2]} 13... Nd7 {[%clk 0:02:02.6]} 14. h4
{[%clk 0:02:40.8]} 14... Ne5 {[%clk 0:01:52]} 15. Kb1 {[%clk 0:02:23.3]} 15...
Rac8 {[%clk 0:01:47.4]} 16. b3 {[%clk 0:02:09.4]} 16... a6 {[%clk 0:01:45.3]}
17. f4 {[%clk 0:01:50.6]} 17... Nc6 {[%clk 0:01:44.2]} 18. Be3 {[%clk
0:01:48.5]} 18... b5 {[%clk 0:01:39.8]} 19. g6 {[%clk 0:01:20.8]} 19... Na5
{[%clk 0:01:16]} 20. gxf7+ {[%clk 0:01:17.9]} 20... Rxf7 {[%clk 0:01:14.8]} 21.
Bg4 {[%clk 0:01:17.7]} 21... Qd7 {[%clk 0:00:54.9]} 22. c5 {[%clk 0:01:06.2]}
22... b4 {[%clk 0:00:38.3]} 23. Nd5 {[%clk 0:01:04.6]} 23... Bxd5 {[%clk
0:00:30.9]} 24. exd5 {[%clk 0:01:04.4]} 24... Qb5 {[%clk 0:00:23.7]} 25. Bxe6
{[%clk 0:01:00.2]} 25... Rf8 {[%clk 0:00:23.6]} 26. c6 {[%clk 0:00:51.4]} 26...
Kh8 {[%clk 0:00:22.6]} 27. Bxf7 {[%clk 0:00:44.1]} 27... Rxf7 {[%clk 0:00:23.5]}
28. c7 {[%clk 0:00:44]} 1-0

[Event "*** Titled Tuesday Blitz"]
[Site "Chess.com"]
[Date "2020.10.20"]
[Round "9"]
[White "dropstoneDP"]
[Black "sjam6687"]
[Result "1-0"]
[WhiteElo "2843"]
[BlackElo "2662"]
[TimeControl "180+1"]
[EndTime "11:46:37 PDT"]
[Termination "dropstoneDP won by resignation"]

1. d4 {[%clk 0:02:55.5]} 1... d5 {[%clk 0:02:35.6]} 2. Nf3 {[%clk 0:02:54.4]}
2... Nf6 {[%clk 0:02:28.5]} 3. c4 {[%clk 0:02:54.4]} 3... c6 {[%clk 0:02:25.9]}
4. h3 {[%clk 0:02:54.2]} 4... e6 {[%clk 0:02:21.8]} 5. e3 {[%clk 0:02:53.4]}
5... Be7 {[%clk 0:01:58.1]} 6. Bd3 {[%clk 0:02:50.4]} 6... O-O {[%clk
0:01:55.7]} 7. O-O {[%clk 0:02:50.3]} 7... Nbd7 {[%clk 0:01:29.9]} 8. Nbd2
{[%clk 0:02:46.7]} 8... b6 {[%clk 0:01:04.5]} 9. e4 {[%clk 0:02:35.2]} 9... dxe4
{[%clk 0:00:53.3]} 10. Nxe4 {[%clk 0:02:36.1]} 10... Bb7 {[%clk 0:00:48.4]} 11.
Qe2 {[%clk 0:02:33]} 11... Nxe4 {[%clk 0:00:40.8]} 12. Qxe4 {[%clk 0:02:30.3]}
12... Nf6 {[%clk 0:00:40.7]} 13. Qh4 {[%clk 0:02:27.3]} 13... g6 {[%clk
0:00:34.1]} 14. Bg5 {[%clk 0:01:59]} 14... Re8 {[%clk 0:00:33.1]} 15. Rfe1
{[%clk 0:01:54.7]} 15... Nd7 {[%clk 0:00:30.8]} 16. Rad1 {[%clk 0:01:50.2]}
16... Bxg5 {[%clk 0:00:28.9]} 17. Nxg5 {[%clk 0:01:51.1]} 17... Nf8 {[%clk
0:00:29.1]} 18. Qh6 {[%clk 0:01:49.8]} 18... Qf6 {[%clk 0:00:27.1]} 19. Ne4
{[%clk 0:01:39.4]} 19... Qe7 {[%clk 0:00:22.4]} 20. c5 {[%clk 0:01:38.7]} 20...
Rad8 {[%clk 0:00:20.8]} 21. Qf4 {[%clk 0:01:33.7]} 21... f5 {[%clk 0:00:18.1]}
22. Nd6 {[%clk 0:01:32.8]} 22... Bc8 {[%clk 0:00:16.6]} 23. Bc4 {[%clk
0:01:31.3]} 23... Bd7 {[%clk 0:00:16.5]} 24. h4 {[%clk 0:01:30.1]} 24... Qf6
{[%clk 0:00:16.3]} 25. Nxe8 {[%clk 0:01:28.3]} 25... Rxe8 {[%clk 0:00:15.1]} 26.
b4 {[%clk 0:01:23.9]} 26... b5 {[%clk 0:00:15.1]} 27. Bb3 {[%clk 0:01:23.9]}
27... Qd8 {[%clk 0:00:15.1]} 28. g3 {[%clk 0:01:23.4]} 28... Bc8 {[%clk
0:00:15]} 29. a4 {[%clk 0:01:22.6]} 29... a6 {[%clk 0:00:14.1]} 30. Ra1 {[%clk
0:01:19.4]} 30... Re7 {[%clk 0:00:13.1]} 31. Qg5 {[%clk 0:01:18.5]} 31... Kg7
{[%clk 0:00:12.6]} 32. h5 {[%clk 0:01:18]} 32... h6 {[%clk 0:00:11.5]} 33. Qf4
{[%clk 0:01:18.1]} 33... g5 {[%clk 0:00:12.4]} 34. Qe5+ {[%clk 0:01:17.9]} 34...
Kf7 {[%clk 0:00:12.1]} 35. Qxf5+ {[%clk 0:01:18]} 1-0